[Event "January 9 Late 2024"]
[Site "https://www.chess.com"]
[Date "2024.01.10"]
[Round "3"]
[White "Erzhanov, Arman"]
[Black "Bastos Seixas, Pedro Lucas"]
[Result "1-0"]
[Board "158"]
[TimeControl "180+1"]
[WhiteFideId "4138821"]
[BlackFideId "2150859"]
[WhiteElo "2555"]
[BlackElo "2251"]
[WhiteTeam "KAZ"]
[BlackTeam "BRA"]
[WhiteClock "0:01:19"]
[BlackClock "0:00:39"]

1. e4 {[%clk 0:03:00]}  c5 {[%clk 0:02:59]} 2. Nf3 {[%clk 0:03:00]}  e6 {[%clk 0:02:59]} 3. b3 {[%clk 0:02:59]}  Nc6 {[%clk 0:02:57]} 4. Bb5 {[%clk 0:02:59]}  a6 {[%clk 0:02:54]} 5. Bxc6 {[%clk 0:02:57]}  dxc6 {[%clk 0:02:55]} 6. d3 {[%clk 0:02:58]}  Ne7 {[%clk 0:02:52]} 7. O-O {[%clk 0:02:57]}  h5 {[%clk 0:02:52]} 8. e5 {[%clk 0:02:55]}  b5 {[%clk 0:02:50]} 9. Nbd2 {[%clk 0:02:53]}  Bb7 {[%clk 0:02:50]} 10. Ne4 {[%clk 0:02:52]}  Nf5 {[%clk 0:02:46]} 11. c4 {[%clk 0:02:45]}  Be7 {[%clk 0:02:39]} 12. Ba3 {[%clk 0:02:44]}  b4 {[%clk 0:02:36]} 13. Bc1 {[%clk 0:02:41]}  a5 {[%clk 0:02:35]} 14. Qe2 {[%clk 0:02:40]}  a4 {[%clk 0:02:35]} 15. Be3 {[%clk 0:02:40]}  axb3 {[%clk 0:02:34]} 16. axb3 {[%clk 0:02:41]}  Nd4 {[%clk 0:02:32]} 17. Bxd4 {[%clk 0:02:27]}  cxd4 {[%clk 0:02:31]} 18. Rxa8 {[%clk 0:02:22]}  Bxa8 {[%clk 0:02:23]} 19. Qa2 {[%clk 0:02:13]}  O-O {[%clk 0:02:18]} 20. c5 {[%clk 0:02:05]}  Qd5 {[%clk 0:02:06]} 21. Rc1 {[%clk 0:02:05]}  f5 {[%clk 0:02:03]} 22. exf6 {[%clk 0:01:53]}  Bxf6 {[%clk 0:01:59]} 23. Nxf6+ {[%clk 0:01:47]}  gxf6 {[%clk 0:01:53]} 24. Qe2 {[%clk 0:01:46]}  e5 {[%clk 0:01:52]} 25. Nh4 {[%clk 0:01:44]}  Qf7 {[%clk 0:01:38]} 26. Nf5 {[%clk 0:01:44]}  Kh7 {[%clk 0:01:35]} 27. Qe4 {[%clk 0:01:38]}  Qg6 {[%clk 0:01:35]} 28. Ra1 {[%clk 0:01:37]}  Bb7 {[%clk 0:01:23]} 29. Ra7 {[%clk 0:01:34]}  Rf7 {[%clk 0:01:23]} 30. Nd6 {[%clk 0:01:31]}  Qxe4 {[%clk 0:01:13]} 31. dxe4 {[%clk 0:01:31]}  Rd7 {[%clk 0:00:50]} 32. Rxb7 {[%clk 0:01:28]}  Rxb7 {[%clk 0:00:51]} 33. Nxb7 {[%clk 0:01:28]}  Kg6 {[%clk 0:00:49]} 34. Na5 {[%clk 0:01:27]}  f5 {[%clk 0:00:48]} 35. f3 {[%clk 0:01:26]}  fxe4 {[%clk 0:00:47]} 36. fxe4 {[%clk 0:01:27]}  Kg5 {[%clk 0:00:48]} 37. g3 {[%clk 0:01:26]}  Kg4 {[%clk 0:00:44]} 38. Nxc6 {[%clk 0:01:25]}  d3 {[%clk 0:00:43]} 39. Kf2 {[%clk 0:01:24]}  Kh3 {[%clk 0:00:42]} 40. Nxe5 {[%clk 0:01:22]}  d2 {[%clk 0:00:42]} 41. Ke2 {[%clk 0:01:22]}  Kxh2 {[%clk 0:00:42]} 42. Kxd2 {[%clk 0:01:20]}  Kxg3 {[%clk 0:00:43]} 43. Ng6 {[%clk 0:01:20]}  Kg4 {[%clk 0:00:39]} 44. c6 {[%clk 0:01:19]} 1-0

[Event "January 9 Late 2024"]
[Site "https://www.chess.com"]
[Date "2024.01.09"]
[Round "3"]
[White "Skurikhin, Dmitrij"]
[Black "Van Dael, Siem"]
[Result "0-1"]
[Board "160"]
[TimeControl "180+1"]
[WhiteFideId "4161297"]
[BlackFideId "1049771"]
[WhiteElo "2230"]
[BlackElo "2554"]
[WhiteTeam "RUS"]
[BlackTeam "NED"]
[WhiteClock "0:00:00"]
[BlackClock "0:00:07"]

1. d4 {[%clk 0:02:59]}  Nf6 {[%clk 0:02:57]} 2. Nf3 {[%clk 0:02:58]}  g6 {[%clk 0:02:54]} 3. c4 {[%clk 0:02:57]}  Bg7 {[%clk 0:02:53]} 4. Nc3 {[%clk 0:02:57]}  d6 {[%clk 0:02:43]} 5. e4 {[%clk 0:02:56]}  O-O {[%clk 0:02:42]} 6. Be2 {[%clk 0:02:56]}  Nbd7 {[%clk 0:02:40]} 7. O-O {[%clk 0:02:55]}  e5 {[%clk 0:02:40]} 8. Re1 {[%clk 0:02:53]}  Re8 {[%clk 0:02:38]} 9. Bg5 {[%clk 0:02:41]}  h6 {[%clk 0:02:34]} 10. Be3 {[%clk 0:02:38]}  Ng4 {[%clk 0:02:30]} 11. Bc1 {[%clk 0:02:36]}  exd4 {[%clk 0:02:23]} 12. Nxd4 {[%clk 0:02:34]}  Ngf6 {[%clk 0:02:02]} 13. Bf1 {[%clk 0:02:26]}  Nc5 {[%clk 0:01:58]} 14. f3 {[%clk 0:02:23]}  a5 {[%clk 0:01:57]} 15. Nb3 {[%clk 0:02:19]}  Be6 {[%clk 0:01:53]} 16. Be3 {[%clk 0:02:14]}  b6 {[%clk 0:01:47]} 17. Qd2 {[%clk 0:02:12]}  Kh7 {[%clk 0:01:36]} 18. Nd4 {[%clk 0:02:11]}  Bd7 {[%clk 0:01:34]} 19. Rad1 {[%clk 0:02:01]}  Re5 {[%clk 0:01:24]} 20. Ndb5 {[%clk 0:01:50]}  Bxb5 {[%clk 0:01:20]} 21. Nxb5 {[%clk 0:01:48]}  Qe7 {[%clk 0:01:18]} 22. Bd4 {[%clk 0:01:35]}  Nh5 {[%clk 0:01:08]} 23. Nc3 {[%clk 0:01:25]}  c6 {[%clk 0:00:55]} 24. f4 {[%clk 0:01:13]}  Nxe4 {[%clk 0:00:49]} 25. Qc1 {[%clk 0:00:15]}  Nxc3 {[%clk 0:00:35]} 26. fxe5 {[%clk 0:00:11]}  Nxd1 {[%clk 0:00:35]} 27. Qxd1 {[%clk 0:00:07]}  Bxe5 {[%clk 0:00:30]} 28. Bf2 {[%clk 0:00:06]}  Qf6 {[%clk 0:00:23]} 29. g3 {[%clk 0:00:06]}  c5 {[%clk 0:00:20]} 30. Bg2 {[%clk 0:00:05]}  Re8 {[%clk 0:00:20]} 31. b3 {[%clk 0:00:05]}  Re7 {[%clk 0:00:10]} 32. Rf1 {[%clk 0:00:05]}  Bd4 {[%clk 0:00:10]} 33. Bxd4 {[%clk 0:00:04]}  Qxd4+ {[%clk 0:00:10]} 34. Qxd4 {[%clk 0:00:04]}  cxd4 {[%clk 0:00:11]} 35. Rd1 {[%clk 0:00:05]}  Re2 {[%clk 0:00:10]} 36. Rxd4 {[%clk 0:00:04]}  Rxa2 {[%clk 0:00:10]} 37. Rxd6 {[%clk 0:00:05]}  Rb2 {[%clk 0:00:11]} 38. Rxb6 {[%clk 0:00:04]}  a4 {[%clk 0:00:11]} 39. b4 {[%clk 0:00:03]}  a3 {[%clk 0:00:11]} 40. Ra6 {[%clk 0:00:03]}  a2 {[%clk 0:00:11]} 41. Bf1 {[%clk 0:00:03]}  Nf6 {[%clk 0:00:09]} 42. c5 {[%clk 0:00:03]}  Nd5 {[%clk 0:00:09]} 43. b5 {[%clk 0:00:02]}  Nc7 {[%clk 0:00:09]} 44. Ra7 {[%clk 0:00:02]}  Nxb5 {[%clk 0:00:08]} 45. Bxb5 {[%clk 0:00:02]}  Rb1+ {[%clk 0:00:07]} 46. Kg2 {[%clk 0:00:01]}  a1=Q {[%clk 0:00:08]} 47. Rxa1 {[%clk 0:00:01]}  Rxa1 {[%clk 0:00:09]} 48. c6 {[%clk 0:00:02]}  Rc1 {[%clk 0:00:09]} 49. Kf3 {[%clk 0:00:02]}  Rc5 {[%clk 0:00:08]} 50. Ke4 {[%clk 0:00:03]}  Rxb5 {[%clk 0:00:08]} 51. Kd4 {[%clk 0:00:04]}  Rb2 {[%clk 0:00:07]} 52. Kd5 {[%clk 0:00:03]}  Rxh2 {[%clk 0:00:07]} 53. c7 {[%clk 0:00:03]}  Rc2 {[%clk 0:00:08]} 54. c8=Q {[%clk 0:00:00]}  Rxc8 {[%clk 0:00:07]} 0-1

[Event "January 9 Late 2024"]
[Site "https://www.chess.com"]
[Date "2024.01.09"]
[Round "3"]
[White "Glashausser, Sho"]
[Black "Grutter, Tim"]
[Result "0-1"]
[Board "163"]
[TimeControl "180+1"]
[WhiteFideId "30908329"]
[BlackFideId "1057472"]
[WhiteElo "2182"]
[BlackElo "2552"]
[WhiteTeam "USA"]
[BlackTeam "NED"]
[WhiteClock "0:00:00"]
[BlackClock "0:00:46"]

1. Nf3 {[%clk 0:03:00]}  d5 {[%clk 0:02:58]} 2. g3 {[%clk 0:03:00]}  Nc6 {[%clk 0:02:57]} 3. d4 {[%clk 0:02:58]}  Bg4 {[%clk 0:02:55]} 4. Bg2 {[%clk 0:02:55]}  Qd7 {[%clk 0:02:55]} 5. h3 {[%clk 0:02:54]}  Bf5 {[%clk 0:02:52]} 6. c3 {[%clk 0:02:44]}  h5 {[%clk 0:02:48]} 7. Qb3 {[%clk 0:02:38]}  O-O-O {[%clk 0:02:48]} 8. a4 {[%clk 0:02:04]}  f6 {[%clk 0:02:38]} 9. a5 {[%clk 0:01:58]}  a6 {[%clk 0:02:38]} 10. Nbd2 {[%clk 0:01:32]}  e5 {[%clk 0:02:38]} 11. dxe5 {[%clk 0:01:32]}  fxe5 {[%clk 0:02:38]} 12. Nh4 {[%clk 0:01:23]}  Bh7 {[%clk 0:02:26]} 13. e4 {[%clk 0:01:04]}  dxe4 {[%clk 0:02:04]} 14. Nxe4 {[%clk 0:00:52]}  Nf6 {[%clk 0:01:53]} 15. Nxf6 {[%clk 0:00:43]}  gxf6 {[%clk 0:01:54]} 16. O-O {[%clk 0:00:40]}  Bg8 {[%clk 0:01:54]} 17. Qa4 {[%clk 0:00:35]}  Bd5 {[%clk 0:01:48]} 18. Be3 {[%clk 0:00:24]}  Bxg2 {[%clk 0:01:47]} 19. Kxg2 {[%clk 0:00:25]}  f5 {[%clk 0:01:37]} 20. Bg5 {[%clk 0:00:20]}  Re8 {[%clk 0:01:23]} 21. Rad1 {[%clk 0:00:20]}  Qe6 {[%clk 0:01:22]} 22. Rfe1 {[%clk 0:00:15]}  Rg8 {[%clk 0:01:22]} 23. Bc1 {[%clk 0:00:09]}  f4 {[%clk 0:01:19]} 24. Kh2 {[%clk 0:00:09]}  Bc5 {[%clk 0:01:15]} 25. Bxf4 {[%clk 0:00:06]}  Bxf2 {[%clk 0:01:14]} 26. Re2 {[%clk 0:00:06]}  Bc5 {[%clk 0:00:54]} 27. Nf3 {[%clk 0:00:07]}  Bd6 {[%clk 0:00:50]} 28. Qc2 {[%clk 0:00:04]}  Qf7 {[%clk 0:00:49]} 29. Nxe5 {[%clk 0:00:00]}  Nxe5 {[%clk 0:00:46]} 0-1

[Event "January 9 Late 2024"]
[Site "https://www.chess.com"]
[Date "2024.01.09"]
[Round "3"]
[White "Dahlgren, James Allen"]
[Black "Srdanovic, Jovana"]
[Result "0-1"]
[Board "165"]
[TimeControl "180+1"]
[WhiteFideId "22256873"]
[BlackFideId "954810"]
[WhiteElo "2119"]
[BlackElo "2551"]
[WhiteTeam "ESP"]
[BlackTeam "SRB"]
[WhiteClock "0:01:59"]
[BlackClock "0:02:22"]

1. d3 {[%clk 0:02:55]}  d5 {[%clk 0:02:59]} 2. f4 {[%clk 0:02:56]}  Nf6 {[%clk 0:02:58]} 3. Nf3 {[%clk 0:02:56]}  Nc6 {[%clk 0:02:56]} 4. g3 {[%clk 0:02:56]}  h5 {[%clk 0:02:54]} 5. Bg2 {[%clk 0:02:55]}  Bg4 {[%clk 0:02:52]} 6. Nbd2 {[%clk 0:02:54]}  e6 {[%clk 0:02:50]} 7. O-O {[%clk 0:02:51]}  Bc5+ {[%clk 0:02:46]} 8. Kh1 {[%clk 0:02:50]}  Qb8 {[%clk 0:02:44]} 9. c3 {[%clk 0:02:45]}  Qc8 {[%clk 0:02:29]} 10. e4 {[%clk 0:02:39]}  dxe4 {[%clk 0:02:27]} 11. dxe4 {[%clk 0:02:31]}  h4 {[%clk 0:02:26]} 12. Qe1 {[%clk 0:02:05]}  h3 {[%clk 0:02:24]} 13. b4 {[%clk 0:02:03]}  hxg2+ {[%clk 0:02:23]} 14. Kxg2 {[%clk 0:01:59]}  Bh3+ {[%clk 0:02:22]} 0-1

[Event "January 9 Late 2024"]
[Site "https://www.chess.com"]
[Date "2024.01.09"]
[Round "3"]
[White "Yushko, Olga"]
[Black "Aliakbarov, Anar"]
[Result "0-1"]
[Board "166"]
[TimeControl "180+1"]
[WhiteFideId "14114500"]
[BlackFideId "13401858"]
[WhiteElo "2117"]
[BlackElo "2550"]
[WhiteTeam "UKR"]
[BlackTeam "TUR"]
[WhiteClock "0:00:00"]
[BlackClock "0:00:59"]

1. d4 {[%clk 0:02:59]}  Nf6 {[%clk 0:02:58]} 2. c4 {[%clk 0:02:59]}  g6 {[%clk 0:02:57]} 3. Nc3 {[%clk 0:02:58]}  Bg7 {[%clk 0:02:57]} 4. Nf3 {[%clk 0:02:58]}  O-O {[%clk 0:02:57]} 5. Bg5 {[%clk 0:02:59]}  d6 {[%clk 0:02:56]} 6. e3 {[%clk 0:02:59]}  c5 {[%clk 0:02:52]} 7. Be2 {[%clk 0:02:59]}  Nc6 {[%clk 0:02:51]} 8. O-O {[%clk 0:02:58]}  h6 {[%clk 0:02:47]} 9. Bh4 {[%clk 0:02:58]}  g5 {[%clk 0:02:45]} 10. Bg3 {[%clk 0:02:58]}  Nh5 {[%clk 0:02:45]} 11. dxc5 {[%clk 0:02:23]}  Nxg3 {[%clk 0:02:45]} 12. hxg3 {[%clk 0:02:18]}  dxc5 {[%clk 0:02:45]} 13. Qc2 {[%clk 0:02:17]}  Be6 {[%clk 0:02:20]} 14. Rfd1 {[%clk 0:02:14]}  Qa5 {[%clk 0:02:13]} 15. Nd5 {[%clk 0:02:10]}  Rfe8 {[%clk 0:02:06]} 16. Qe4 {[%clk 0:01:53]}  Rad8 {[%clk 0:01:57]} 17. Bd3 {[%clk 0:01:49]}  Nb4 {[%clk 0:01:53]} 18. Nxb4 {[%clk 0:01:17]}  Qxb4 {[%clk 0:01:42]} 19. a3 {[%clk 0:01:06]}  Qb3 {[%clk 0:01:31]} 20. Be2 {[%clk 0:00:43]}  b6 {[%clk 0:01:11]} 21. Rab1 {[%clk 0:00:37]}  Rxd1+ {[%clk 0:01:06]} 22. Bxd1 {[%clk 0:00:37]}  Qxc4 {[%clk 0:01:06]} 23. Bc2 {[%clk 0:00:21]}  Qxe4 {[%clk 0:01:03]} 24. Bxe4 {[%clk 0:00:21]}  Rd8 {[%clk 0:01:01]} 25. Kf1 {[%clk 0:00:00]}  Ba2 {[%clk 0:00:59]} 0-1

[Event "January 9 Late 2024"]
[Site "https://www.chess.com"]
[Date "2024.01.10"]
[Round "3"]
[White "Mena, Martin"]
[Black "Serban, Cristian-Stefan"]
[Result "0-1"]
[Board "168"]
[TimeControl "180+1"]
[WhiteFideId "10651225"]
[BlackFideId "1241443"]
[WhiteElo "2090"]
[BlackElo "2550"]
[WhiteTeam "EGY"]
[BlackTeam "ROU"]
[WhiteClock "0:00:00"]
[BlackClock "0:00:18"]

1. c4 {[%clk 0:03:00]}  g6 {[%clk 0:02:57]} 2. g3 {[%clk 0:02:58]}  Bg7 {[%clk 0:02:57]} 3. Bg2 {[%clk 0:02:57]}  Nf6 {[%clk 0:02:54]} 4. Nc3 {[%clk 0:02:57]}  O-O {[%clk 0:02:54]} 5. d3 {[%clk 0:02:55]}  e5 {[%clk 0:02:42]} 6. e4 {[%clk 0:02:52]}  Nc6 {[%clk 0:02:39]} 7. Nge2 {[%clk 0:02:50]}  d6 {[%clk 0:02:31]} 8. h3 {[%clk 0:02:50]}  Nd7 {[%clk 0:02:28]} 9. O-O {[%clk 0:02:48]}  Nc5 {[%clk 0:02:28]} 10. Be3 {[%clk 0:02:46]}  Ne6 {[%clk 0:02:27]} 11. Qd2 {[%clk 0:02:47]}  f5 {[%clk 0:01:44]} 12. f4 {[%clk 0:02:46]}  Ned4 {[%clk 0:01:44]} 13. Bxd4 {[%clk 0:02:40]}  exd4 {[%clk 0:01:38]} 14. Nd5 {[%clk 0:02:37]}  fxe4 {[%clk 0:01:33]} 15. dxe4 {[%clk 0:02:25]}  Be6 {[%clk 0:01:31]} 16. Rac1 {[%clk 0:02:21]}  Qd7 {[%clk 0:01:31]} 17. Kh2 {[%clk 0:02:19]}  a5 {[%clk 0:01:26]} 18. b3 {[%clk 0:02:17]}  Rae8 {[%clk 0:01:23]} 19. g4 {[%clk 0:01:47]}  b6 {[%clk 0:01:21]} 20. f5 {[%clk 0:01:31]}  Bxd5 {[%clk 0:01:16]} 21. cxd5 {[%clk 0:01:23]}  Nb4 {[%clk 0:01:12]} 22. Nxd4 {[%clk 0:01:13]}  Bxd4 {[%clk 0:01:06]} 23. Qxd4 {[%clk 0:01:12]}  Nxa2 {[%clk 0:01:06]} 24. Rce1 {[%clk 0:00:29]}  Re5 {[%clk 0:01:00]} 25. f6 {[%clk 0:00:20]}  Nb4 {[%clk 0:00:57]} 26. Re2 {[%clk 0:00:17]}  Na6 {[%clk 0:00:47]} 27. Ref2 {[%clk 0:00:16]}  Rf7 {[%clk 0:00:46]} 28. Rf4 {[%clk 0:00:09]}  Nc5 {[%clk 0:00:42]} 29. b4 {[%clk 0:00:09]}  axb4 {[%clk 0:00:42]} 30. h4 {[%clk 0:00:07]}  h6 {[%clk 0:00:23]} 31. Bh3 {[%clk 0:00:05]}  Qe8 {[%clk 0:00:23]} 32. g5 {[%clk 0:00:03]}  hxg5 {[%clk 0:00:19]} 33. hxg5 {[%clk 0:00:03]}  Rxg5 {[%clk 0:00:20]} 34. Re1 {[%clk 0:00:01]}  Qe5 {[%clk 0:00:17]} 35. Qxe5 {[%clk 0:00:00]}  Rxe5 {[%clk 0:00:18]} 0-1

[Event "January 9 Late 2024"]
[Site "https://www.chess.com"]
[Date "2024.01.09"]
[Round "3"]
[White "Gulamirian, Korun"]
[Black "Gheorghiu, Calin"]
[Result "0-1"]
[Board "170"]
[TimeControl "180+1"]
[WhiteFideId "4144899"]
[BlackFideId "1200305"]
[WhiteElo "1638"]
[BlackElo "2445"]
[WhiteTeam "RUS"]
[BlackTeam "ROU"]
[WhiteClock "0:00:00"]
[BlackClock "0:02:13"]

1. e4 {[%clk 0:02:59]}  d6 {[%clk 0:02:59]} 2. d4 {[%clk 0:02:58]}  g6 {[%clk 0:03:00]} 3. f4 {[%clk 0:02:55]}  Bg7 {[%clk 0:03:00]} 4. Nf3 {[%clk 0:02:55]}  Nf6 {[%clk 0:02:58]} 5. Bd3 {[%clk 0:02:46]}  c5 {[%clk 0:02:57]} 6. e5 {[%clk 0:02:45]}  dxe5 {[%clk 0:02:57]} 7. fxe5 {[%clk 0:02:36]}  Ng4 {[%clk 0:02:56]} 8. Bf4 {[%clk 0:02:26]}  cxd4 {[%clk 0:02:52]} 9. Nxd4 {[%clk 0:02:25]}  O-O {[%clk 0:02:46]} 10. Nf3 {[%clk 0:02:18]}  Nc6 {[%clk 0:02:46]} 11. Qe2 {[%clk 0:02:05]}  Qb6 {[%clk 0:02:43]} 12. h3 {[%clk 0:01:53]}  Qxb2 {[%clk 0:02:37]} 13. Nbd2 {[%clk 0:01:51]}  Qxa1+ {[%clk 0:02:36]} 14. Qd1 {[%clk 0:01:49]}  Qxd1+ {[%clk 0:02:35]} 15. Kxd1 {[%clk 0:01:48]}  Nf2+ {[%clk 0:02:35]} 16. Ke2 {[%clk 0:01:47]}  Nxh1 {[%clk 0:02:36]} 17. g4 {[%clk 0:01:35]}  Be6 {[%clk 0:02:35]} 18. Be4 {[%clk 0:01:24]}  Rad8 {[%clk 0:02:32]} 19. Ng5 {[%clk 0:01:22]}  Bd5 {[%clk 0:02:30]} 20. c4 {[%clk 0:01:09]}  Bxe4 {[%clk 0:02:24]} 21. Ndxe4 {[%clk 0:01:00]}  Nxe5 {[%clk 0:02:24]} 22. c5 {[%clk 0:00:53]}  h6 {[%clk 0:02:22]} 23. Nf3 {[%clk 0:00:43]}  Nxf3 {[%clk 0:02:19]} 24. Kxf3 {[%clk 0:00:43]}  Rd1 {[%clk 0:02:19]} 25. Kg2 {[%clk 0:00:22]}  Rfd8 {[%clk 0:02:18]} 26. a4 {[%clk 0:00:00]}  R8d4 {[%clk 0:02:13]} 0-1

[Event "January 9 Late 2024"]
[Site "https://www.chess.com"]
[Date "2024.01.09"]
[Round "3"]
[White "Kovalevsky, Stanislav"]
[Black "Timmermans, Mark"]
[Result "0-1"]
[Board "172"]
[TimeControl "180+1"]
[WhiteFideId "13508598"]
[BlackFideId "1026399"]
[WhiteElo "2419"]
[BlackElo "2742"]
[WhiteTeam "FID"]
[BlackTeam "NED"]
[WhiteClock "0:00:19"]
[BlackClock "0:00:33"]

1. e4 {[%clk 0:03:00]}  e5 {[%clk 0:03:00]} 2. Nf3 {[%clk 0:03:00]}  Nc6 {[%clk 0:03:00]} 3. Bb5 {[%clk 0:03:01]}  f5 {[%clk 0:03:00]} 4. Nc3 {[%clk 0:02:55]}  fxe4 {[%clk 0:02:52]} 5. Nxe4 {[%clk 0:02:51]}  d5 {[%clk 0:02:53]} 6. Nxe5 {[%clk 0:02:42]}  dxe4 {[%clk 0:02:54]} 7. Qh5+ {[%clk 0:02:39]}  g6 {[%clk 0:02:54]} 8. Nxg6 {[%clk 0:02:39]}  hxg6 {[%clk 0:02:55]} 9. Qxh8 {[%clk 0:02:38]}  Qf6 {[%clk 0:02:55]} 10. Qxg8 {[%clk 0:02:33]}  Be6 {[%clk 0:02:55]} 11. Qh7 {[%clk 0:02:28]}  O-O-O {[%clk 0:02:55]} 12. h4 {[%clk 0:02:16]}  Bc5 {[%clk 0:02:52]} 13. d4 {[%clk 0:02:03]}  Nxd4 {[%clk 0:02:28]} 14. O-O {[%clk 0:02:02]}  Rh8 {[%clk 0:01:27]} 15. Bg5 {[%clk 0:02:00]}  Rxh7 {[%clk 0:01:18]} 16. Bxf6 {[%clk 0:02:00]}  Nxb5 {[%clk 0:01:19]} 17. Rad1 {[%clk 0:01:48]}  Nd6 {[%clk 0:01:05]} 18. g3 {[%clk 0:01:44]}  a5 {[%clk 0:01:03]} 19. Bd4 {[%clk 0:01:40]}  Bxd4 {[%clk 0:00:58]} 20. Rxd4 {[%clk 0:01:41]}  b5 {[%clk 0:00:59]} 21. Rfd1 {[%clk 0:01:35]}  Bg4 {[%clk 0:00:56]} 22. R1d2 {[%clk 0:01:26]}  Bf3 {[%clk 0:00:55]} 23. Rd5 {[%clk 0:01:05]}  e3 {[%clk 0:00:54]} 24. fxe3 {[%clk 0:01:02]}  Bxd5 {[%clk 0:00:54]} 25. Rxd5 {[%clk 0:01:03]}  Rh5 {[%clk 0:00:52]} 26. Rd3 {[%clk 0:00:57]}  Kd7 {[%clk 0:00:50]} 27. Kg2 {[%clk 0:00:57]}  Ke6 {[%clk 0:00:51]} 28. Kf3 {[%clk 0:00:57]}  Rf5+ {[%clk 0:00:48]} 29. Kg4 {[%clk 0:00:56]}  Nc4 {[%clk 0:00:49]} 30. Rd8 {[%clk 0:00:45]}  Nxe3+ {[%clk 0:00:47]} 31. Kh3 {[%clk 0:00:44]}  Nxc2 {[%clk 0:00:42]} 32. Re8+ {[%clk 0:00:42]}  Kf7 {[%clk 0:00:42]} 33. Rc8 {[%clk 0:00:41]}  Rc5 {[%clk 0:00:42]} 34. g4 {[%clk 0:00:41]}  Nb4 {[%clk 0:00:38]} 35. a3 {[%clk 0:00:41]}  Nd3 {[%clk 0:00:38]} 36. g5 {[%clk 0:00:30]}  Nxb2 {[%clk 0:00:37]} 37. Rh8 {[%clk 0:00:30]}  Rc3+ {[%clk 0:00:35]} 38. Kg4 {[%clk 0:00:29]}  Rc4+ {[%clk 0:00:35]} 39. Kf3 {[%clk 0:00:29]}  Kg7 {[%clk 0:00:36]} 40. Rc8 {[%clk 0:00:27]}  Na4 {[%clk 0:00:34]} 41. Rb8 {[%clk 0:00:23]}  Nb6 {[%clk 0:00:33]} 42. Rb7 {[%clk 0:00:21]}  b4 {[%clk 0:00:31]} 43. axb4 {[%clk 0:00:20]}  axb4 {[%clk 0:00:32]} 44. Ke3 {[%clk 0:00:21]}  b3 {[%clk 0:00:32]} 45. Kd3 {[%clk 0:00:19]}  b2 {[%clk 0:00:33]} 0-1

[Event "January 9 Late 2024"]
[Site "https://www.chess.com"]
[Date "2024.01.09"]
[Round "3"]
[White "Ibadov, Dashgyn"]
[Black "Argandona Riveiro, Inigo"]
[Result "1-0"]
[Board "174"]
[TimeControl "180+1"]
[WhiteFideId "24107514"]
[BlackFideId "2212072"]
[WhiteElo "2638"]
[BlackElo "2406"]
[WhiteTeam "FID"]
[BlackTeam "ESP"]
[WhiteClock "0:00:10"]
[BlackClock "0:01:13"]

1. e4 {[%clk 0:03:00]}  d6 {[%clk 0:03:00]} 2. d4 {[%clk 0:02:59]}  Nf6 {[%clk 0:03:01]} 3. Nc3 {[%clk 0:02:58]}  e5 {[%clk 0:03:02]} 4. Nf3 {[%clk 0:02:58]}  exd4 {[%clk 0:03:03]} 5. Nxd4 {[%clk 0:02:57]}  Be7 {[%clk 0:03:03]} 6. g3 {[%clk 0:02:57]}  O-O {[%clk 0:03:04]} 7. Bg2 {[%clk 0:02:57]}  Re8 {[%clk 0:03:04]} 8. O-O {[%clk 0:02:56]}  Bf8 {[%clk 0:03:05]} 9. h3 {[%clk 0:02:52]}  Nbd7 {[%clk 0:03:05]} 10. g4 {[%clk 0:02:44]}  Nc5 {[%clk 0:03:05]} 11. Re1 {[%clk 0:02:43]}  c6 {[%clk 0:03:05]} 12. Bf4 {[%clk 0:02:39]}  a5 {[%clk 0:03:04]} 13. Qd2 {[%clk 0:02:29]}  Qb6 {[%clk 0:03:00]} 14. e5 {[%clk 0:02:11]}  dxe5 {[%clk 0:02:56]} 15. Bxe5 {[%clk 0:02:12]}  Nfd7 {[%clk 0:02:33]} 16. Bxg7 {[%clk 0:01:45]}  Rxe1+ {[%clk 0:02:22]} 17. Rxe1 {[%clk 0:01:46]}  Bxg7 {[%clk 0:02:21]} 18. Re8+ {[%clk 0:01:26]}  Nf8 {[%clk 0:02:21]} 19. Nf5 {[%clk 0:00:53]}  Bxf5 {[%clk 0:02:11]} 20. Rxa8 {[%clk 0:00:54]}  Bg6 {[%clk 0:02:12]} 21. h4 {[%clk 0:00:39]}  Qxb2 {[%clk 0:02:11]} 22. h5 {[%clk 0:00:37]}  Qxc3 {[%clk 0:02:02]} 23. Rxf8+ {[%clk 0:00:35]}  Bxf8 {[%clk 0:01:40]} 24. Qxc3 {[%clk 0:00:34]}  Be4 {[%clk 0:01:38]} 25. Bxe4 {[%clk 0:00:27]}  Nxe4 {[%clk 0:01:39]} 26. Qxa5 {[%clk 0:00:26]}  h6 {[%clk 0:01:36]} 27. Kg2 {[%clk 0:00:25]}  Nc5 {[%clk 0:01:35]} 28. Qc7 {[%clk 0:00:22]}  Kg7 {[%clk 0:01:32]} 29. f4 {[%clk 0:00:21]}  Ne6 {[%clk 0:01:30]} 30. Qxb7 {[%clk 0:00:18]}  Nxf4+ {[%clk 0:01:29]} 31. Kf3 {[%clk 0:00:19]}  Ne6 {[%clk 0:01:29]} 32. a4 {[%clk 0:00:19]}  Nd4+ {[%clk 0:01:25]} 33. Ke4 {[%clk 0:00:16]}  Ne6 {[%clk 0:01:25]} 34. Qb2+ {[%clk 0:00:13]}  Kg8 {[%clk 0:01:24]} 35. a5 {[%clk 0:00:14]}  Bg7 {[%clk 0:01:24]} 36. Qb8+ {[%clk 0:00:12]}  Kh7 {[%clk 0:01:24]} 37. a6 {[%clk 0:00:13]}  Nc5+ {[%clk 0:01:24]} 38. Kf5 {[%clk 0:00:11]}  Nxa6 {[%clk 0:01:25]} 39. Qb6 {[%clk 0:00:10]}  c5 {[%clk 0:01:21]} 40. Qxa6 {[%clk 0:00:10]}  Bd4 {[%clk 0:01:22]} 41. Qb7 {[%clk 0:00:08]}  Kg8 {[%clk 0:01:21]} 42. Qc8+ {[%clk 0:00:08]}  Kg7 {[%clk 0:01:21]} 43. Qa6 {[%clk 0:00:08]}  Kh7 {[%clk 0:01:20]} 44. Qc4 {[%clk 0:00:09]}  Kg7 {[%clk 0:01:18]} 45. c3 {[%clk 0:00:09]}  Be3 {[%clk 0:01:18]} 46. Qe4 {[%clk 0:00:08]}  Bg5 {[%clk 0:01:17]} 47. Qe5+ {[%clk 0:00:08]}  Kg8 {[%clk 0:01:17]} 48. Qxc5 {[%clk 0:00:08]}  Kg7 {[%clk 0:01:16]} 49. Qd5 {[%clk 0:00:08]}  Kg8 {[%clk 0:01:16]} 50. c4 {[%clk 0:00:08]}  Kf8 {[%clk 0:01:16]} 51. c5 {[%clk 0:00:09]}  Ke8 {[%clk 0:01:15]} 52. c6 {[%clk 0:00:09]}  Bd8 {[%clk 0:01:15]} 53. Qd7+ {[%clk 0:00:10]}  Kf8 {[%clk 0:01:16]} 54. Qxd8+ {[%clk 0:00:10]}  Kg7 {[%clk 0:01:16]} 55. Qf6+ {[%clk 0:00:10]}  Kg8 {[%clk 0:01:16]} 56. c7 {[%clk 0:00:09]}  Kh7 {[%clk 0:01:13]} 57. Qxf7+ {[%clk 0:00:10]} 1-0